[Event "European Online Club-ch-F 2021"]
[Site "Online"]
[Date "2021.03.27"]
[Round "5.20"]
[White "Camlar, Arda"]
[Black "Saatdjian, Stephane"]
[Result "1-0"]
[ECO "A05"]
[WhiteElo "1934"]
[BlackElo "2131"]
[Annotator "NA"]
[PlyCount "115"]
[EventDate "2021.03.27"]
[EventType "team-tourn"]
[EventCountry "NET"]
[SourceTitle "playchess.com"]
[Source "ChessBase"]
[SourceQuality "1"]
[TimeControl "900+5"]

1. g3 {[%emt 0:00:00]} c5 {[%emt 0:00:02]} 2. Bg2 {[%emt 0:00:03]} Nc6 {[%emt 0:00:03]} 3. Nf3 {[%emt 0:00:03]} Nf6 {[%emt 0:00:08]} 4. O-O {[%emt 0:00:03]} g6 {[%emt 0:00:01]} 5. d3 {[%emt 0:00:12]} Bg7 {[%emt 0:00:02]} 6. e4 {[%emt 0:00:05]} d6 {[%emt 0:00:02]} 7. Nbd2 {[%emt 0:00:14]} O-O {[%emt 0:00:02]} 8. c3 {[%emt 0:00:09]} Rb8 {[%emt 0:00:12]} 9. Qe2 {[%emt 0:00:17]} b5 {[%emt 0:00:04]} 10. a4 {[%emt 0:00:50]} b4 {[%emt 0:00:08]} 11. Nc4 {[%emt 0:00:03]} Ba6 {[%emt 0:00:54]} 12. e5 {[%emt 0:00:39]} Nxe5 {[%emt 0:00:47]} 13. Nfxe5 {[%emt 0:00:12]} dxe5 {[%emt 0:00:03]} 14. Nxe5 {[%emt 0:00:02]} Rb6 {[%emt 0:02:00]} 15. c4 {[%emt 0:01:08]} Bb7 {[%emt 0:00:59]} 16. Bxb7 {[%emt 0:00:57]} Rxb7 {[%emt 0:00:03]} 17. Be3 {[%emt 0:00:02]} Qd6 {[%emt 0:01:25]} 18. Nf3 {[%emt 0:01:13]} Rd7 {[%emt 0:01:12]} 19. d4 {[%emt 0:00:38]} cxd4 {[%emt 0:00:37]} 20. Bxd4 {[%emt 0:00:11]} Ne8 {[%emt 0:02:20]} 21. Rad1 {[%emt 0:01:03]} Qc7 {[%emt 0:01:17]} 22. b3 {[%emt 0:00:47]} Bxd4 {[%emt 0:00:41]} 23. Nxd4 {[%emt 0:00:11]} Ng7 {[%emt 0:01:34]} 24. Nc2 {[%emt 0:00:35]} a5 {[%emt 0:00:13]} 25. Ne3 {[%emt 0:00:19]} e6 {[%emt 0:00:10]} 26. Rxd7 {[%emt 0:00:07]} Qxd7 {[%emt 0:00:02]} 27. Rd1 {[%emt 0:00:04]} Qc6 {[%emt 0:00:15]} 28. Ng4 {[%emt 0:00:14]} f6 {[%emt 0:01:01]} 29. Qd3 {[%emt 0:00:40]} h5 {[%emt 0:00:38]} 30. Ne3 {[%emt 0:00:27]} Kh7 {[%emt 0:00:10]} 31. Qd6 {[%emt 0:00:11]} Rc8 {[%emt 0:00:09]} 32. Qxc6 {[%emt 0:00:24]} Rxc6 {[%emt 0:00:01]} 33. Rd7 {[%emt 0:00:08]} Kh6 {[%emt 0:00:03]} 34. Kf1 {[%emt 0:00:22]} g5 {[%emt 0:00:07]} 35. Ra7 {[%emt 0:00:06]} Rc5 {[%emt 0:00:03]} 36. Rb7 {[%emt 0:00:01]} Nf5 {[%emt 0:00:07]} 37. Rb5 {[%emt 0:00:50]} Rxb5 {[%emt 0:00:04]} 38. cxb5 {[%emt 0:00:03]} Nd4 {[%emt 0:00:16]} 39. b6 {[%emt 0:00:07]} Kg6 {[%emt 0:00:05]} 40. b7 {[%emt 0:00:04]} Nc6 {[%emt 0:00:01]} 41. Nc4 {[%emt 0:00:02]} Kf5 {[%emt 0:00:05]} 42. Nxa5 {[%emt 0:00:09]} Nb8 {[%emt 0:00:01]} 43. Nc4 {[%emt 0:00:08]} Ke4 {[%emt 0:00:06]} 44. Ke2 {[%emt 0:00:02]} Kd4 {[%emt 0:00:02]} 45. Kd2 {[%emt 0:00:03]} Kc5 {[%emt 0:00:09]} 46. Kd3 {[%emt 0:00:04]} Kc6 {[%emt 0:00:02]} 47. Kd4 {[%emt 0:00:05]} Kxb7 {[%emt 0:00:04]} 48. Kc5 {[%emt 0:00:01]} Kc7 {[%emt 0:00:01]} 49. Kxb4 {[%emt 0:00:04]} Kc6 {[%emt 0:00:03]} 50. Kc3 {[%emt 0:00:02]} Kd5 {[%emt 0:00:02]} 51. b4 {[%emt 0:00:10]} f5 {[%emt 0:00:01]} 52. a5 {[%emt 0:00:19]} h4 {[%emt 0:00:18]} 53. gxh4 {[%emt 0:00:13]} gxh4 {[%emt 0:00:02]} 54. Ne3+ {[%emt 0:00:21]} Ke4 {[%emt 0:00:19]} 55. b5 {[%emt 0:00:02]} Kf3 {[%emt 0:00:03]} 56. a6 {[%emt 0:00:02]} Nd7 {[%emt 0:00:01]} 57. Nc4 {[%emt 0:00:06]} Kg2 {[%emt 0:00:19]} 58. a7 {[%emt 0:00:03]} 1-0

[Event "European Online Club-ch-F 2021"]
[Site "Online"]
[Date "2021.03.27"]
[Round "6.1"]
[White "Pulkkinen, Kari"]
[Black "Isik, Alparslan"]
[Result "0-1"]
[ECO "B92"]
[WhiteElo "2256"]
[BlackElo "2321"]
[Annotator "NA"]
[PlyCount "110"]
[EventDate "2021.03.27"]
[EventType "team-tourn"]
[EventCountry "NET"]
[SourceTitle "playchess.com"]
[Source "ChessBase"]
[SourceQuality "1"]
[TimeControl "900+5"]

1. e4 {[%emt 0:00:00]} c5 {[%emt 0:00:04]} 2. Nf3 {[%emt 0:00:03]} d6 {[%emt 0:00:02]} 3. d4 {[%emt 0:00:02]} cxd4 {[%emt 0:00:02]} 4. Nxd4 {[%emt 0:00:02]} Nf6 {[%emt 0:00:03]} 5. Nc3 {[%emt 0:00:02]} a6 {[%emt 0:00:01]} 6. Be2 {[%emt 0:00:02]} e5 {[%emt 0:00:03]} 7. Nf3 {[%emt 0:00:03]} h6 {[%emt 0:00:07]} 8. a4 {[%emt 0:00:08]} Be6 {[%emt 0:00:05]} 9. Nd2 {[%emt 0:00:09]} Qc7 {[%emt 0:00:04]} 10. O-O {[%emt 0:00:18]} Be7 {[%emt 0:00:05]} 11. a5 {[%emt 0:00:11]} O-O {[%emt 0:00:29]} 12. Ra4 {[%emt 0:00:07]} Nbd7 {[%emt 0:00:44]} 13. f3 {[%emt 0:01:13]} Nc5 {[%emt 0:00:13]} 14. Ra3 {[%emt 0:00:17]} d5 {[%emt 0:00:55]} 15. b4 {[%emt 0:01:16]} dxe4 {[%emt 0:00:12]} 16. fxe4 {[%emt 0:02:21]} Ncd7 {[%emt 0:00:34]} 17. Nd5 {[%emt 0:00:38]} Bxd5 {[%emt 0:01:02]} 18. exd5 {[%emt 0:00:03]} Bxb4 {[%emt 0:00:02]} 19. Rg3 {[%emt 0:00:05]} Nxd5 {[%emt 0:00:19]} 20. Ne4 {[%emt 0:00:08]} Nf4 {[%emt 0:00:05]} 21. Bxf4 {[%emt 0:02:22]} exf4 {[%emt 0:00:04]} 22. Rb3 {[%emt 0:00:11]} Bxa5 {[%emt 0:00:20]} 23. Qd5 {[%emt 0:00:38]} b5 {[%emt 0:02:13]} 24. Qf5 {[%emt 0:02:04]} Qe5 {[%emt 0:02:02]} 25. Rxf4 {[%emt 0:01:35]} Qxf5 {[%emt 0:00:25]} 26. Rxf5 {[%emt 0:00:02]} Rfc8 {[%emt 0:00:14]} 27. Bd3 {[%emt 0:00:09]} Bb6+ {[%emt 0:00:09]} 28. Kf1 {[%emt 0:00:05]} Nc5 {[%emt 0:00:02]} 29. Nxc5 {[%emt 0:00:03]} Rxc5 {[%emt 0:00:04]} 30. Rf3 {[%emt 0:00:37]} Bc7 {[%emt 0:00:37]} 31. g3 {[%emt 0:00:03]} Re8 {[%emt 0:00:05]} 32. Kg2 {[%emt 0:00:20]} Rb8 {[%emt 0:00:38]} 33. Rf1 {[%emt 0:00:07]} a5 {[%emt 0:00:05]} 34. Rfb1 {[%emt 0:00:03]} b4 {[%emt 0:00:02]} 35. Kf3 {[%emt 0:00:11]} Bd6 {[%emt 0:00:03]} 36. Ra1 {[%emt 0:00:03]} Re5 {[%emt 0:00:20]} 37. Rbb1 {[%emt 0:00:06]} Ra8 {[%emt 0:00:06]} 38. Ra4 {[%emt 0:00:04]} Rae8 {[%emt 0:00:02]} 39. Rba1 {[%emt 0:00:06]} Bc7 {[%emt 0:00:02]} 40. Rd1 {[%emt 0:00:06]} R5e6 {[%emt 0:00:10]} 41. Ra2 {[%emt 0:00:06]} Bb6 {[%emt 0:00:06]} 42. Kg2 {[%emt 0:00:06]} g6 {[%emt 0:00:05]} 43. Rf1 {[%emt 0:00:02]} Kg7 {[%emt 0:00:04]} 44. Bc4 {[%emt 0:00:06]} Rf6 {[%emt 0:00:02]} 45. Rxf6 {[%emt 0:00:03]} Kxf6 {[%emt 0:00:01]} 46. Ra1 {[%emt 0:00:01]} Re5 {[%emt 0:00:15]} 47. Rf1+ {[%emt 0:00:06]} Rf5 {[%emt 0:00:01]} 48. Rxf5+ {[%emt 0:00:03]} gxf5 {[%emt 0:00:02]} 49. Bb3 {[%emt 0:00:03]} Ke5 {[%emt 0:00:22]} 50. Kf3 {[%emt 0:00:02]} f6 {[%emt 0:00:04]} 51. Ba4 {[%emt 0:00:07]} Bc7 {[%emt 0:00:05]} 52. Bd7 {[%emt 0:00:11]} Kd4 {[%emt 0:00:03]} 53. h3 {[%emt 0:00:05]} Kc3 {[%emt 0:00:06]} 54. g4 {[%emt 0:00:02]} Kxc2 {[%emt 0:00:06]} 55. Bxf5+ {[%emt 0:00:03]} Kc1 {[%emt 0:00:06]} 0-1

[Event "European Online Club-ch-F 2021"]
[Site "Online"]
[Date "2021.03.27"]
[Round "6.2"]
[White "Karaoglan, Doruk"]
[Black "Graeffe, Petri"]
[Result "1-0"]
[ECO "B25"]
[WhiteElo "2230"]
[BlackElo "2043"]
[Annotator "NA"]
[PlyCount "59"]
[EventDate "2021.03.27"]
[EventType "team-tourn"]
[EventCountry "NET"]
[SourceTitle "playchess.com"]
[Source "ChessBase"]
[SourceQuality "1"]
[TimeControl "900+5"]

1. e4 {[%emt 0:00:00]} c5 {[%emt 0:00:03]} 2. Nc3 {[%emt 0:00:03]} Nc6 {[%emt 0:00:05]} 3. g3 {[%emt 0:00:03]} e6 {[%emt 0:00:03]} 4. Bg2 {[%emt 0:00:03]} g6 {[%emt 0:00:07]} 5. d3 {[%emt 0:00:03]} Bg7 {[%emt 0:00:03]} 6. Be3 {[%emt 0:00:02]} d6 {[%emt 0:00:10]} 7. f4 {[%emt 0:00:03]} Nge7 {[%emt 0:00:05]} 8. Nf3 {[%emt 0:00:03]} Nd4 {[%emt 0:00:20]} 9. O-O {[%emt 0:00:03]} O-O {[%emt 0:00:06]} 10. e5 {[%emt 0:00:56]} Nef5 {[%emt 0:00:43]} 11. Bf2 {[%emt 0:00:03]} dxe5 {[%emt 0:02:29]} 12. Nxe5 {[%emt 0:00:04]} Qc7 {[%emt 0:02:52]} 13. Ne4 {[%emt 0:03:07]} f6 {[%emt 0:02:01]} 14. Nc4 {[%emt 0:01:13]} b5 {[%emt 0:00:33]} 15. Ncd2 {[%emt 0:00:45]} Rb8 {[%emt 0:03:11]} 16. c3 {[%emt 0:00:48]} Nc6 {[%emt 0:00:04]} 17. Nxc5 {[%emt 0:00:34]} e5 {[%emt 0:00:15]} 18. fxe5 {[%emt 0:00:39]} fxe5 {[%emt 0:00:03]} 19. Nde4 {[%emt 0:01:08]} Bh6 {[%emt 0:00:19]} 20. Qe2 {[%emt 0:00:53]} b4 {[%emt 0:00:35]} 21. Rae1 {[%emt 0:00:48]} Kg7 {[%emt 0:00:31]} 22. g4 {[%emt 0:00:27]} bxc3 {[%emt 0:00:56]} 23. bxc3 {[%emt 0:00:19]} Na5 {[%emt 0:00:02]} 24. gxf5 {[%emt 0:00:10]} gxf5 {[%emt 0:00:02]} 25. Ng3 {[%emt 0:00:19]} f4 {[%emt 0:00:05]} 26. Nh5+ {[%emt 0:00:04]} Kh8 {[%emt 0:00:07]} 27. Qxe5+ {[%emt 0:00:04]} Qxe5 {[%emt 0:00:04]} 28. Rxe5 {[%emt 0:00:02]} Bg7 {[%emt 0:00:09]} 29. Nxg7 {[%emt 0:00:03]} Kxg7 {[%emt 0:00:02]} 30. Bd4 {[%emt 0:00:02]} 1-0

[Event "European Online Club-ch-F 2021"]
[Site "Online"]
[Date "2021.03.27"]
[Round "6.3"]
[White "Puittinen, Mika"]
[Black "Apaydin, Fethi"]
[Result "0-1"]
[ECO "A27"]
[WhiteElo "2007"]
[BlackElo "2260"]
[Annotator "NA"]
[PlyCount "49"]
[EventDate "2021.03.27"]
[EventType "team-tourn"]
[EventCountry "NET"]
[SourceTitle "playchess.com"]
[Source "ChessBase"]
[SourceQuality "1"]
[TimeControl "900+5"]

1. c4 {[%emt 0:00:00]} e5 {[%emt 0:00:04]} 2. Nc3 {[%emt 0:00:03]} Nc6 {[%emt 0:00:04]} 3. Nf3 {[%emt 0:00:03]} g6 {[%emt 0:00:10]} 4. d4 {[%emt 0:00:31]} exd4 {[%emt 0:00:07]} 5. Nxd4 {[%emt 0:00:02]} Bg7 {[%emt 0:00:02]} 6. Nc2 {[%emt 0:00:09]} Nf6 {[%emt 0:00:21]} 7. g3 {[%emt 0:00:39]} O-O {[%emt 0:00:50]} 8. Bg2 {[%emt 0:00:23]} Ne5 {[%emt 0:00:47]} 9. Ne3 {[%emt 0:00:38]} d6 {[%emt 0:00:04]} 10. Qc2 {[%emt 0:00:43]} Rb8 {[%emt 0:00:12]} 11. O-O {[%emt 0:00:12]} a6 {[%emt 0:00:09]} 12. f4 {[%emt 0:01:02]} Neg4 {[%emt 0:00:17]} 13. Nxg4 {[%emt 0:00:09]} Nxg4 {[%emt 0:00:08]} 14. Qd3 {[%emt 0:02:23]} c6 {[%emt 0:00:34]} 15. h3 {[%emt 0:01:36]} Qb6+ {[%emt 0:02:36]} 16. e3 {[%emt 0:00:25]} Bf5 {[%emt 0:00:32]} 17. Qe2 {[%emt 0:01:16]} Nf6 {[%emt 0:00:29]} 18. Kh2 {[%emt 0:01:15]} Rfe8 {[%emt 0:00:33]} 19. Rd1 {[%emt 0:03:19]} Rbd8 {[%emt 0:00:47]} 20. e4 {[%emt 0:00:19]} Nxe4 {[%emt 0:01:20]} 21. Nxe4 {[%emt 0:00:04]} Bxe4 {[%emt 0:00:09]} 22. Bxe4 {[%emt 0:00:03]} d5 {[%emt 0:00:39]} 23. Be3 {[%emt 0:01:03]} Rxe4 {[%emt 0:00:16]} 24. Bxb6 {[%emt 0:00:04]} Rxe2+ {[%emt 0:00:02]} 25. Kg1 {[%emt 0:00:04]} 0-1

[Event "European Online Club-ch-F 2021"]
[Site "Online"]
[Date "2021.03.27"]
[Round "6.4"]
[White "Camlar, Arda"]
[Black "Kivilahti, Rami"]
[Result "1-0"]
[ECO "A11"]
[WhiteElo "1934"]
[BlackElo "1962"]
[Annotator "NA"]
[PlyCount "67"]
[EventDate "2021.03.27"]
[EventType "team-tourn"]
[EventCountry "NET"]
[SourceTitle "playchess.com"]
[Source "ChessBase"]
[SourceQuality "1"]
[TimeControl "900+5"]

1. g3 {[%emt 0:00:00]} c6 {[%emt 0:00:04]} 2. Bg2 {[%emt 0:00:02]} d5 {[%emt 0:00:01]} 3. Nf3 {[%emt 0:00:01]} Nf6 {[%emt 0:00:02]} 4. c4 {[%emt 0:00:05]} dxc4 {[%emt 0:00:08]} 5. a4 {[%emt 0:00:21]} Be6 {[%emt 0:00:10]} 6. Qc2 {[%emt 0:00:15]} g6 {[%emt 0:00:23]} 7. Ng5 {[%emt 0:00:39]} Bd7 {[%emt 0:00:36]} 8. Qxc4 {[%emt 0:00:10]} e6 {[%emt 0:00:03]} 9. Nc3 {[%emt 0:00:21]} Bg7 {[%emt 0:00:10]} 10. O-O {[%emt 0:00:10]} O-O {[%emt 0:00:04]} 11. d4 {[%emt 0:00:15]} h6 {[%emt 0:00:21]} 12. Nge4 {[%emt 0:00:13]} a5 {[%emt 0:03:23]} 13. Nxf6+ {[%emt 0:02:07]} Qxf6 {[%emt 0:00:12]} 14. Ne4 {[%emt 0:00:03]} Qe7 {[%emt 0:00:13]} 15. Bf4 {[%emt 0:00:13]} e5 {[%emt 0:00:42]} 16. dxe5 {[%emt 0:00:29]} g5 {[%emt 0:01:28]} 17. Nf6+ {[%emt 0:01:12]} Bxf6 {[%emt 0:00:11]} 18. exf6 {[%emt 0:00:03]} Qxf6 {[%emt 0:00:02]} 19. Bd2 {[%emt 0:00:10]} Be6 {[%emt 0:01:02]} 20. Qc1 {[%emt 0:00:33]} Nd7 {[%emt 0:00:47]} 21. Bc3 {[%emt 0:00:22]} Qf5 {[%emt 0:00:13]} 22. f4 {[%emt 0:00:23]} Qc5+ {[%emt 0:01:11]} 23. Kh1 {[%emt 0:00:10]} Bg4 {[%emt 0:00:37]} 24. e4 {[%emt 0:00:37]} f6 {[%emt 0:00:19]} 25. Qc2 {[%emt 0:00:48]} Bh5 {[%emt 0:01:08]} 26. e5 {[%emt 0:02:09]} fxe5 {[%emt 0:01:03]} 27. g4 {[%emt 0:00:12]} Bf7 {[%emt 0:00:25]} 28. Rad1 {[%emt 0:01:13]} Rad8 {[%emt 0:01:16]} 29. fxe5 {[%emt 0:00:12]} Nxe5 {[%emt 0:00:22]} 30. Rxd8 {[%emt 0:00:04]} Rxd8 {[%emt 0:00:08]} 31. Qf5 {[%emt 0:00:02]} Bd5 {[%emt 0:00:32]} 32. Qxe5 {[%emt 0:00:35]} Bxg2+ {[%emt 0:00:05]} 33. Kxg2 {[%emt 0:00:03]} Rd1 {[%emt 0:00:01]} 34. Qh8# {[%emt 0:00:13]} 1-0

[Event "European Online Club-ch-F 2021"]
[Site "Online"]
[Date "2021.03.27"]
[Round "6.5"]
[White "Gorodetzky, Matan"]
[Black "Sochacki, Christophe"]
[Result "0-1"]
[ECO "B01"]
[WhiteElo "2253"]
[BlackElo "2477"]
[Annotator "ChessBase"]
[PlyCount "90"]
[EventDate "2021.03.27"]
[EventType "team-tourn"]
[EventCountry "NET"]
[SourceTitle "playchess.com"]
[Source "ChessBase"]
[SourceQuality "1"]
[TimeControl "900+5"]

1. e4 {[%emt 0:00:00]} Nc6 {[%emt 0:00:05]} 2. Nf3 {[%emt 0:00:03]} d5 {[%emt 0:00:02]} 3. exd5 {[%emt 0:00:02]} Qxd5 {[%emt 0:00:01]} 4. Nc3 {[%emt 0:00:02]} Qa5 {[%emt 0:00:03]} 5. h3 {[%emt 0:00:18]} e5 {[%emt 0:00:41]} 6. Bc4 {[%emt 0:00:13]} Bf5 {[%emt 0:04:36]} 7. O-O {[%emt 0:00:41]} Nf6 {[%emt 0:01:23]} 8. Re1 {[%emt 0:01:42]} Bb4 {[%emt 0:00:57]} 9. Bb5 {[%emt 0:00:35]} Bxc3 {[%emt 0:03:21]} 10. Bxc6+ {[%emt 0:00:03]} bxc6 {[%emt 0:00:01]} 11. bxc3 {[%emt 0:00:03]} e4 {[%emt 0:00:01]} 12. Nd4 {[%emt 0:00:20]} Bg6 {[%emt 0:00:47]} 13. Qe2 {[%emt 0:00:45]} O-O {[%emt 0:00:16]} 14. Nxc6 {[%emt 0:00:53]} Qc5 {[%emt 0:00:05]} 15. Nd4 {[%emt 0:00:02]} Qd5 {[%emt 0:00:59]} 16. Qb5 {[%emt 0:00:28]} c5 {[%emt 0:00:07]} 17. Nb3 {[%emt 0:00:02]} Rfc8 {[%emt 0:01:12]} 18. c4 {[%emt 0:00:36]} Qh5 {[%emt 0:00:18]} 19. Bb2 {[%emt 0:00:17]} Rab8 {[%emt 0:00:27]} 20. Qa6 {[%emt 0:00:05]} Bf5 {[%emt 0:00:14]} 21. Bxf6 {[%emt 0:00:23]} Rb6 {[%emt 0:00:09]} 22. Qxa7 {[%emt 0:00:57]} Rxf6 {[%emt 0:00:01]} 23. Re3 {[%emt 0:00:02]} h6 {[%emt 0:00:11]} 24. a4 {[%emt 0:00:12]} Rg6 {[%emt 0:00:07]} 25. Kf1 {[%emt 0:00:07]} Be6 {[%emt 0:00:10]} 26. d3 {[%emt 0:00:42]} f5 {[%emt 0:00:04]} 27. Nxc5 {[%emt 0:01:14]} f4 {[%emt 0:00:01]} 28. Nxe6 {[%emt 0:00:02]} fxe3 {[%emt 0:00:35]} 29. Nf4 {[%emt 0:00:20]} Qe5 {[%emt 0:00:18]} 30. Nxg6 {[%emt 0:00:02]} Qxa1+ {[%emt 0:00:01]} 31. Ke2 {[%emt 0:00:01]} exd3+ {[%emt 0:00:02]} 32. cxd3 {[%emt 0:00:17]} exf2 {[%emt 0:00:15]} 33. Ne7+ {[%emt 0:00:35]} Kh7 {[%emt 0:00:03]} 34. Qxf2 {[%emt 0:00:33]} Re8 {[%emt 0:00:09]} 35. Qf5+ {[%emt 0:00:07]} Kh8 {[%emt 0:00:01]} 36. Qe6 {[%emt 0:00:08]} Qf6 {[%emt 0:00:05]} 37. Qxf6 {[%emt 0:00:20]} gxf6 {[%emt 0:00:03]} 38. d4 {[%emt 0:00:02]} Kg7 {[%emt 0:00:03]} 39. c5 {[%emt 0:00:03]} Kf7 {[%emt 0:00:03]} 40. Kd3 {[%emt 0:00:02]} Kxe7 {[%emt 0:00:03]} 41. d5 {[%emt 0:00:02]} Ra8 {[%emt 0:00:02]} 42. Ke4 {[%emt 0:00:03]} Rxa4+ {[%emt 0:00:02]} 43. Kf5 {[%emt 0:00:01]} Rc4 {[%emt 0:00:09]} 44. d6+ {[%emt 0:00:09]} Kf7 {[%emt 0:00:06]} 45. d7 {[%emt 0:00:09]} Rxc5+ {[%emt 0:00:01]} 0-1

[Event "European Online Club-ch-F 2021"]
[Site "Online"]
[Date "2021.03.27"]
[Round "6.6"]
[White "Maatoug, Redwan"]
[Black "Katkov, Michelle"]
[Result "1-0"]
[ECO "C52"]
[WhiteElo "2202"]
[BlackElo "2078"]
[Annotator "NA"]
[PlyCount "91"]
[EventDate "2021.03.27"]
[EventType "team-tourn"]
[EventCountry "NET"]
[SourceTitle "playchess.com"]
[Source "ChessBase"]
[SourceQuality "1"]
[TimeControl "900+5"]

1. e4 {[%emt 0:00:00]} e5 {[%emt 0:00:03]} 2. Nf3 {[%emt 0:00:04]} Nc6 {[%emt 0:00:02]} 3. Bc4 {[%emt 0:00:41]} Bc5 {[%emt 0:00:04]} 4. O-O {[%emt 0:00:13]} Nf6 {[%emt 0:00:07]} 5. b4 {[%emt 0:00:11]} Bxb4 {[%emt 0:00:13]} 6. c3 {[%emt 0:00:02]} Ba5 {[%emt 0:00:20]} 7. d4 {[%emt 0:00:02]} d6 {[%emt 0:00:35]} 8. Bg5 {[%emt 0:00:30]} h6 {[%emt 0:00:08]} 9. Bh4 {[%emt 0:00:16]} Bg4 {[%emt 0:00:22]} 10. Qb3 {[%emt 0:00:06]} Bxf3 {[%emt 0:00:16]} 11. Bxf7+ {[%emt 0:00:23]} Kf8 {[%emt 0:00:08]} 12. gxf3 {[%emt 0:00:01]} exd4 {[%emt 0:00:09]} 13. cxd4 {[%emt 0:00:16]} Nxd4 {[%emt 0:00:08]} 14. Qd3 {[%emt 0:00:29]} Kxf7 {[%emt 0:00:50]} 15. Qxd4 {[%emt 0:00:05]} Qe7 {[%emt 0:00:53]} 16. Na3 {[%emt 0:00:20]} Bb6 {[%emt 0:00:19]} 17. Qd3 {[%emt 0:00:12]} Rhf8 {[%emt 0:00:32]} 18. Nc4 {[%emt 0:00:25]} Kg8 {[%emt 0:00:10]} 19. Ne3 {[%emt 0:00:02]} Bxe3 {[%emt 0:01:49]} 20. fxe3 {[%emt 0:00:03]} Rae8 {[%emt 0:00:12]} 21. Qb3+ {[%emt 0:00:08]} Kh8 {[%emt 0:00:17]} 22. Qxb7 {[%emt 0:00:44]} d5 {[%emt 0:00:03]} 23. Bxf6 {[%emt 0:01:31]} Rxf6 {[%emt 0:00:27]} 24. Qxd5 {[%emt 0:00:02]} Rg6+ {[%emt 0:00:14]} 25. Kh1 {[%emt 0:00:04]} Rd8 {[%emt 0:00:10]} 26. Qf5 {[%emt 0:00:47]} Rg5 {[%emt 0:00:16]} 27. Qh3 {[%emt 0:00:15]} Rd2 {[%emt 0:00:28]} 28. Rad1 {[%emt 0:00:45]} Qd8 {[%emt 0:00:47]} 29. Rxd2 {[%emt 0:00:09]} Qxd2 {[%emt 0:00:02]} 30. f4 {[%emt 0:00:01]} Ra5 {[%emt 0:00:10]} 31. Qg3 {[%emt 0:00:38]} Rxa2 {[%emt 0:00:38]} 32. Rg1 {[%emt 0:01:15]} Qb2 {[%emt 0:01:05]} 33. f5 {[%emt 0:00:29]} c5 {[%emt 0:00:02]} 34. Rd1 {[%emt 0:00:16]} Ra1 {[%emt 0:00:45]} 35. Rxa1 {[%emt 0:00:03]} Qxa1+ {[%emt 0:00:02]} 36. Kg2 {[%emt 0:00:01]} Qb2+ {[%emt 0:00:06]} 37. Kh3 {[%emt 0:00:03]} c4 {[%emt 0:00:33]} 38. e5 {[%emt 0:00:24]} Qc2 {[%emt 0:00:37]} 39. Qf3 {[%emt 0:00:38]} c3 {[%emt 0:00:53]} 40. f6 {[%emt 0:02:27]} gxf6 {[%emt 0:00:28]} 41. exf6 {[%emt 0:00:16]} Kg8 {[%emt 0:02:18]} 42. Qd5+ {[%emt 0:00:08]} Kf8 {[%emt 0:00:39]} 43. Qd8+ {[%emt 0:00:02]} Kf7 {[%emt 0:00:01]} 44. Qe7+ {[%emt 0:00:01]} Kg6 {[%emt 0:00:01]} 45. Qg7+ {[%emt 0:00:02]} Kf5 {[%emt 0:00:03]} 46. Qh7+ {[%emt 0:00:01]} 1-0